[Event "Titled Tuesday Blitz February 14 Late 2023"]
[White "Ozen, Bahadir"]
[Black "Sztokbant, Bernardo Vainzoff"]
[WhiteFideId "6337058"]
[BlackFideId "2115956"]
[WhiteElo "2369"]
[BlackElo "2213"]
[Result "1-0"]
[Round "02"]
[TimeControl "180+2"]
[Date "2023.02.14"]
[WhiteClock "0:00:16"]
[BlackClock "0:00:04"]

1. e4 {[%clk 0:03:00]}  c5 {[%clk 0:02:59]} 2. Nf3 {[%clk 0:03:00]}  Nc6 {[%clk 0:02:59]} 3. Bb5 {[%clk 0:02:59]}  e6 {[%clk 0:02:59]} 4. O-O {[%clk 0:02:58]}  Nge7 {[%clk 0:02:59]} 5. Re1 {[%clk 0:02:58]}  a6 {[%clk 0:02:59]} 6. Bf1 {[%clk 0:02:58]}  d5 {[%clk 0:02:58]} 7. exd5 {[%clk 0:02:59]}  Nxd5 {[%clk 0:02:58]} 8. d4 {[%clk 0:02:58]}  Be7 {[%clk 0:02:56]} 9. c4 {[%clk 0:02:54]}  Nf6 {[%clk 0:02:56]} 10. Be3 {[%clk 0:02:54]}  O-O {[%clk 0:02:49]} 11. Nc3 {[%clk 0:02:43]}  cxd4 {[%clk 0:02:49]} 12. Nxd4 {[%clk 0:02:44]}  Bd7 {[%clk 0:02:48]} 13. Nb3 {[%clk 0:02:00]}  Bb4 {[%clk 0:02:39]} 14. Rc1 {[%clk 0:01:51]}  Ne7 {[%clk 0:02:07]} 15. a3 {[%clk 0:01:46]}  Bxc3 {[%clk 0:02:07]} 16. Rxc3 {[%clk 0:01:47]}  Nf5 {[%clk 0:02:07]} 17. Bg5 {[%clk 0:01:40]}  Bc6 {[%clk 0:02:06]} 18. Qxd8 {[%clk 0:01:39]}  Rfxd8 {[%clk 0:02:06]} 19. Na5 {[%clk 0:01:38]}  h6 {[%clk 0:02:00]} 20. Nxc6 {[%clk 0:01:38]}  bxc6 {[%clk 0:02:00]} 21. Bf4 {[%clk 0:01:38]}  Ra7 {[%clk 0:01:49]} 22. f3 {[%clk 0:01:34]}  Rb7 {[%clk 0:01:44]} 23. b4 {[%clk 0:01:33]}  Rbd7 {[%clk 0:01:39]} 24. Kf2 {[%clk 0:01:27]}  Rd1 {[%clk 0:01:28]} 25. Rxd1 {[%clk 0:01:26]}  Rxd1 {[%clk 0:01:29]} 26. Rd3 {[%clk 0:01:01]}  Ra1 {[%clk 0:01:29]} 27. Be5 {[%clk 0:00:58]}  Ra2+ {[%clk 0:01:29]} 28. Be2 {[%clk 0:00:58]}  Kf8 {[%clk 0:01:18]} 29. g4 {[%clk 0:00:56]}  Nh4 {[%clk 0:01:16]} 30. Bg3 {[%clk 0:00:46]}  Ng6 {[%clk 0:01:09]} 31. Ke1 {[%clk 0:00:43]}  Ke8 {[%clk 0:00:58]} 32. Rd6 {[%clk 0:00:41]}  Ne7 {[%clk 0:00:53]} 33. Rd3 {[%clk 0:00:39]}  Nd7 {[%clk 0:00:51]} 34. h4 {[%clk 0:00:38]}  f6 {[%clk 0:00:43]} 35. Bc7 {[%clk 0:00:35]}  Ng6 {[%clk 0:00:36]} 36. h5 {[%clk 0:00:30]}  Nge5 {[%clk 0:00:36]} 37. Rb3 {[%clk 0:00:25]}  Ke7 {[%clk 0:00:29]} 38. c5 {[%clk 0:00:25]}  Ra1+ {[%clk 0:00:21]} 39. Kf2 {[%clk 0:00:25]}  Ra2 {[%clk 0:00:21]} 40. Ke3 {[%clk 0:00:26]}  f5 {[%clk 0:00:17]} 41. gxf5 {[%clk 0:00:23]}  exf5 {[%clk 0:00:18]} 42. Bxa6 {[%clk 0:00:23]}  Ra1 {[%clk 0:00:11]} 43. Be2 {[%clk 0:00:18]}  Nf7 {[%clk 0:00:05]} 44. f4 {[%clk 0:00:16]}  Nf6 {[%clk 0:00:05]} 45. Bf3 {[%clk 0:00:16]}  Kd7 {[%clk 0:00:05]} 46. Bb8 {[%clk 0:00:15]}  Nd8 {[%clk 0:00:05]} 47. Rd3+ {[%clk 0:00:14]}  Kc8 {[%clk 0:00:05]} 48. Be5 {[%clk 0:00:15]}  Ne6 {[%clk 0:00:05]} 49. Bxf6 {[%clk 0:00:15]}  gxf6 {[%clk 0:00:06]} 50. Bxc6 {[%clk 0:00:15]}  Re1+ {[%clk 0:00:04]} 51. Kf2 {[%clk 0:00:15]}  Ra1 {[%clk 0:00:05]} 52. Bd7+ {[%clk 0:00:15]}  Kc7 {[%clk 0:00:05]} 53. Bxe6 {[%clk 0:00:16]}  Rd1 {[%clk 0:00:04]} 54. Rxd1 {[%clk 0:00:16]} 1-0


[Site "https://www.chess.com"]

[Event "Titled Tuesday Blitz February 14 Late 2023"]
[White "Kalajzic, Ivan"]
[Black "Papp, Levente"]
[WhiteFideId "14506378"]
[BlackFideId "751243"]
[WhiteElo "2062"]
[BlackElo "2353"]
[Result "1-0"]
[Round "02"]
[TimeControl "180+2"]
[Date "2023.02.14"]
[WhiteClock "0:00:40"]
[BlackClock "0:00:01"]

1. b3 {[%clk 0:02:46]}  a5 {[%clk 0:02:58]} 2. a3 {[%clk 0:02:46]}  Nf6 {[%clk 0:02:55]} 3. Bb2 {[%clk 0:02:46]}  g6 {[%clk 0:02:55]} 4. Bxf6 {[%clk 0:02:46]}  exf6 {[%clk 0:02:56]} 5. c4 {[%clk 0:02:46]}  Bg7 {[%clk 0:02:45]} 6. Nc3 {[%clk 0:02:45]}  O-O {[%clk 0:02:44]} 7. g3 {[%clk 0:02:45]}  f5 {[%clk 0:02:39]} 8. Bg2 {[%clk 0:02:45]}  c6 {[%clk 0:02:15]} 9. e3 {[%clk 0:02:45]}  d5 {[%clk 0:02:15]} 10. cxd5 {[%clk 0:02:45]}  cxd5 {[%clk 0:02:15]} 11. d4 {[%clk 0:02:43]}  Be6 {[%clk 0:02:13]} 12. Nge2 {[%clk 0:02:42]}  Nc6 {[%clk 0:02:08]} 13. O-O {[%clk 0:02:42]}  Rc8 {[%clk 0:02:07]} 14. Qd3 {[%clk 0:02:42]}  Qd7 {[%clk 0:01:44]} 15. Rfc1 {[%clk 0:02:38]}  Ne7 {[%clk 0:01:43]} 16. Qb5 {[%clk 0:02:20]}  Qxb5 {[%clk 0:01:27]} 17. Nxb5 {[%clk 0:02:20]}  Rc6 {[%clk 0:01:28]} 18. Rc3 {[%clk 0:02:07]}  Rfc8 {[%clk 0:01:27]} 19. Rac1 {[%clk 0:02:07]}  Bf8 {[%clk 0:01:20]} 20. Na7 {[%clk 0:02:01]}  Rxc3 {[%clk 0:01:20]} 21. Rxc3 {[%clk 0:02:02]}  Rxc3 {[%clk 0:01:11]} 22. Nxc3 {[%clk 0:02:03]}  f6 {[%clk 0:00:33]} 23. Nab5 {[%clk 0:01:57]}  Kf7 {[%clk 0:00:33]} 24. Nc7 {[%clk 0:01:52]}  Nc6 {[%clk 0:00:18]} 25. N7b5 {[%clk 0:01:34]}  Ne7 {[%clk 0:00:08]} 26. Nd6+ {[%clk 0:01:34]}  Kg7 {[%clk 0:00:08]} 27. Nxb7 {[%clk 0:01:34]}  Nc6 {[%clk 0:00:08]} 28. Nc5 {[%clk 0:01:23]}  Bxc5 {[%clk 0:00:06]} 29. dxc5 {[%clk 0:01:24]}  d4 {[%clk 0:00:07]} 30. exd4 {[%clk 0:01:14]}  Nxd4 {[%clk 0:00:08]} 31. b4 {[%clk 0:01:10]}  axb4 {[%clk 0:00:08]} 32. axb4 {[%clk 0:01:11]}  Bc4 {[%clk 0:00:06]} 33. Bf1 {[%clk 0:01:06]}  Be6 {[%clk 0:00:04]} 34. b5 {[%clk 0:01:00]}  Kf7 {[%clk 0:00:04]} 35. Bg2 {[%clk 0:00:54]}  Bc8 {[%clk 0:00:03]} 36. b6 {[%clk 0:00:51]}  Ne6 {[%clk 0:00:03]} 37. c6 {[%clk 0:00:48]}  Nc5 {[%clk 0:00:01]} 38. Bd5+ {[%clk 0:00:40]} 1-0


[Site "https://www.chess.com"]

[Event "Titled Tuesday Blitz February 14 Late 2023"]
[White "Kollars, Dmitrij"]
[Black "Stanisz, Patryk"]
[WhiteFideId "12909572"]
[BlackFideId "1123106"]
[WhiteElo "2607"]
[BlackElo "2161"]
[Result "1-0"]
[Round "02"]
[TimeControl "180+2"]
[Date "2023.02.14"]
[WhiteClock "0:01:49"]
[BlackClock "0:00:03"]

1. Nc3 {[%clk 0:03:00]}  c6 {[%clk 0:02:54]} 2. d4 {[%clk 0:02:59]}  d5 {[%clk 0:02:55]} 3. Bf4 {[%clk 0:02:56]}  Bf5 {[%clk 0:02:52]} 4. f3 {[%clk 0:02:56]}  h6 {[%clk 0:02:52]} 5. e4 {[%clk 0:02:55]}  Bg6 {[%clk 0:02:48]} 6. Bd3 {[%clk 0:02:52]}  e6 {[%clk 0:02:42]} 7. Nge2 {[%clk 0:02:46]}  Bb4 {[%clk 0:02:40]} 8. O-O {[%clk 0:02:37]}  Nd7 {[%clk 0:02:38]} 9. a3 {[%clk 0:02:35]}  Ba5 {[%clk 0:02:38]} 10. Kh1 {[%clk 0:02:24]}  Ne7 {[%clk 0:02:36]} 11. Qe1 {[%clk 0:02:20]}  Bc7 {[%clk 0:02:27]} 12. Qg3 {[%clk 0:02:17]}  Bxf4 {[%clk 0:02:24]} 13. Nxf4 {[%clk 0:02:18]}  Nf6 {[%clk 0:02:15]} 14. Nxg6 {[%clk 0:02:16]}  Nxg6 {[%clk 0:02:06]} 15. exd5 {[%clk 0:02:16]}  Nh5 {[%clk 0:01:39]} 16. Qe1 {[%clk 0:02:16]}  Ngf4 {[%clk 0:01:10]} 17. dxe6 {[%clk 0:02:16]}  fxe6 {[%clk 0:00:51]} 18. Qe4 {[%clk 0:02:10]}  Qf6 {[%clk 0:00:42]} 19. Bc4 {[%clk 0:02:07]}  O-O-O {[%clk 0:00:33]} 20. Rad1 {[%clk 0:02:07]}  Nd5 {[%clk 0:00:30]} 21. Bb3 {[%clk 0:02:03]}  Rde8 {[%clk 0:00:23]} 22. Rfe1 {[%clk 0:02:00]}  Nhf4 {[%clk 0:00:20]} 23. Ne2 {[%clk 0:01:57]}  Qg5 {[%clk 0:00:16]} 24. Nxf4 {[%clk 0:01:56]}  Nxf4 {[%clk 0:00:17]} 25. g3 {[%clk 0:01:55]}  Nd5 {[%clk 0:00:16]} 26. c4 {[%clk 0:01:54]}  Nf6 {[%clk 0:00:11]} 27. Qe5 {[%clk 0:01:54]}  Qg6 {[%clk 0:00:05]} 28. Re2 {[%clk 0:01:52]}  Nd7 {[%clk 0:00:05]} 29. Qd6 {[%clk 0:01:51]}  Rhf8 {[%clk 0:00:06]} 30. f4 {[%clk 0:01:51]}  h5 {[%clk 0:00:04]} 31. c5 {[%clk 0:01:50]}  Qf6 {[%clk 0:00:03]} 32. Bxe6 {[%clk 0:01:50]}  Qd8 {[%clk 0:00:02]} 33. Rde1 {[%clk 0:01:49]}  Rf6 {[%clk 0:00:01]} 34. Bxd7+ {[%clk 0:01:49]}  Qxd7 {[%clk 0:00:02]} 35. Rxe8+ {[%clk 0:01:49]}  Qxe8 {[%clk 0:00:03]} 36. Rxe8# {[%clk 0:01:49]} 1-0


[Site "https://www.chess.com"]

[Event "Titled Tuesday Blitz February 14 Late 2023"]
[White "Kanyamarala, Trisha"]
[Black "Urazayev, Arystanbek"]
[WhiteFideId "45004722"]
[BlackFideId "13709810"]
[WhiteElo "2278"]
[BlackElo "2460"]
[Result "0-1"]
[Round "02"]
[TimeControl "180+2"]
[Date "2023.02.14"]
[WhiteClock "0:00:03"]
[BlackClock "0:01:56"]

1. d4 {[%clk 0:02:51]}  Nf6 {[%clk 0:02:59]} 2. c4 {[%clk 0:02:51]}  g6 {[%clk 0:02:59]} 3. Nc3 {[%clk 0:02:51]}  Bg7 {[%clk 0:02:59]} 4. Nf3 {[%clk 0:02:49]}  O-O {[%clk 0:02:59]} 5. h4 {[%clk 0:02:43]}  d6 {[%clk 0:02:48]} 6. e4 {[%clk 0:02:33]}  e5 {[%clk 0:02:47]} 7. d5 {[%clk 0:02:29]}  Bg4 {[%clk 0:02:47]} 8. Be2 {[%clk 0:02:27]}  Nbd7 {[%clk 0:02:47]} 9. Be3 {[%clk 0:02:24]}  Nc5 {[%clk 0:02:47]} 10. Qc2 {[%clk 0:02:07]}  Ncxe4 {[%clk 0:02:37]} 11. Nxe4 {[%clk 0:01:16]}  Nxe4 {[%clk 0:02:37]} 12. h5 {[%clk 0:01:14]}  f5 {[%clk 0:02:20]} 13. hxg6 {[%clk 0:01:01]}  hxg6 {[%clk 0:02:20]} 14. O-O-O {[%clk 0:00:47]}  f4 {[%clk 0:02:21]} 15. Bd2 {[%clk 0:00:23]}  Nxf2 {[%clk 0:02:20]} 16. Qxg6 {[%clk 0:00:16]}  Bf5 {[%clk 0:02:21]} 17. Qh5 {[%clk 0:00:13]}  Nxh1 {[%clk 0:02:21]} 18. Rxh1 {[%clk 0:00:12]}  Qe8 {[%clk 0:02:22]} 19. Qh4 {[%clk 0:00:12]}  Qg6 {[%clk 0:02:21]} 20. Qh2 {[%clk 0:00:10]}  Rae8 {[%clk 0:02:02]} 21. Nh4 {[%clk 0:00:10]}  Qh7 {[%clk 0:02:03]} 22. Nxf5 {[%clk 0:00:10]}  Qxh2 {[%clk 0:02:02]} 23. Rxh2 {[%clk 0:00:10]}  Rxf5 {[%clk 0:02:03]} 24. Bg4 {[%clk 0:00:10]}  Rg5 {[%clk 0:02:00]} 25. Be6+ {[%clk 0:00:10]}  Rxe6 {[%clk 0:02:01]} 26. dxe6 {[%clk 0:00:10]}  Kf8 {[%clk 0:01:59]} 27. Kd1 {[%clk 0:00:05]}  Ke7 {[%clk 0:01:57]} 28. Ke2 {[%clk 0:00:03]}  Kxe6 {[%clk 0:01:57]} 29. Kf2 {[%clk 0:00:03]}  Kf5 {[%clk 0:01:57]} 30. Rh7 {[%clk 0:00:03]}  e4 {[%clk 0:01:56]} 0-1


[Site "https://www.chess.com"]

[Event "Titled Tuesday Blitz February 14 Late 2023"]
[White "Dzida, Kamil"]
[Black "Mikaelyan, Arman"]
[WhiteFideId "21828652"]
[BlackFideId "13304852"]
[WhiteElo "2352"]
[BlackElo "2523"]
[Result "1/2-1/2"]
[Round "02"]
[TimeControl "180+2"]
[Date "2023.02.14"]
[WhiteClock "0:00:11"]
[BlackClock "0:00:07"]

1. e4 {[%clk 0:03:00]}  a6 {[%clk 0:02:57]} 2. d4 {[%clk 0:02:54]}  b5 {[%clk 0:02:58]} 3. a4 {[%clk 0:02:54]}  Bb7 {[%clk 0:02:56]} 4. Bd3 {[%clk 0:02:50]}  e6 {[%clk 0:02:54]} 5. Nf3 {[%clk 0:02:46]}  c5 {[%clk 0:02:50]} 6. axb5 {[%clk 0:02:41]}  axb5 {[%clk 0:02:49]} 7. Rxa8 {[%clk 0:02:38]}  Bxa8 {[%clk 0:02:50]} 8. Bxb5 {[%clk 0:02:38]}  Bxe4 {[%clk 0:02:50]} 9. Nbd2 {[%clk 0:02:32]}  Bc6 {[%clk 0:02:47]} 10. Bd3 {[%clk 0:02:22]}  Nf6 {[%clk 0:02:47]} 11. O-O {[%clk 0:02:22]}  Be7 {[%clk 0:02:43]} 12. b3 {[%clk 0:02:17]}  O-O {[%clk 0:02:41]} 13. Bb2 {[%clk 0:02:17]}  d5 {[%clk 0:02:33]} 14. Re1 {[%clk 0:02:12]}  Nbd7 {[%clk 0:02:33]} 15. Ne5 {[%clk 0:02:04]}  Nxe5 {[%clk 0:01:53]} 16. dxe5 {[%clk 0:02:03]}  Ne4 {[%clk 0:01:53]} 17. Bxe4 {[%clk 0:01:49]}  dxe4 {[%clk 0:01:54]} 18. Qe2 {[%clk 0:01:45]}  e3 {[%clk 0:01:21]} 19. Qxe3 {[%clk 0:01:45]}  Bg5 {[%clk 0:01:21]} 20. f4 {[%clk 0:01:39]}  Be7 {[%clk 0:01:22]} 21. Ne4 {[%clk 0:01:34]}  c4 {[%clk 0:01:18]} 22. bxc4 {[%clk 0:01:01]}  Qa5 {[%clk 0:01:16]} 23. Bd4 {[%clk 0:00:55]}  Qa2 {[%clk 0:01:07]} 24. Nf6+ {[%clk 0:00:26]}  Kh8 {[%clk 0:01:06]} 25. Qd3 {[%clk 0:00:26]}  gxf6 {[%clk 0:00:44]} 26. Ra1 {[%clk 0:00:26]}  Qxa1+ {[%clk 0:00:32]} 27. Bxa1 {[%clk 0:00:25]}  f5 {[%clk 0:00:33]} 28. Bd4 {[%clk 0:00:19]}  Rg8 {[%clk 0:00:32]} 29. Qe2 {[%clk 0:00:17]}  Be4 {[%clk 0:00:28]} 30. h3 {[%clk 0:00:17]}  Rg3 {[%clk 0:00:26]} 31. Kh2 {[%clk 0:00:14]}  Ra3 {[%clk 0:00:20]} 32. c3 {[%clk 0:00:15]}  Ra8 {[%clk 0:00:16]} 33. c5 {[%clk 0:00:15]}  Rg8 {[%clk 0:00:14]} 34. g3 {[%clk 0:00:11]}  Ra8 {[%clk 0:00:14]} 35. Bf2 {[%clk 0:00:11]}  Ra1 {[%clk 0:00:13]} 36. g4 {[%clk 0:00:09]}  Rh1+ {[%clk 0:00:11]} 37. Kg3 {[%clk 0:00:10]}  fxg4 {[%clk 0:00:11]} 38. Qxe4 {[%clk 0:00:09]}  Rxh3+ {[%clk 0:00:09]} 39. Kxg4 {[%clk 0:00:10]}  Rh2 {[%clk 0:00:07]} 40. Kf3 {[%clk 0:00:10]}  Rh3+ {[%clk 0:00:06]} 41. Ke2 {[%clk 0:00:10]}  Rxc3 {[%clk 0:00:07]} 42. c6 {[%clk 0:00:11]}  Kg7 {[%clk 0:00:06]} 43. Bd4 {[%clk 0:00:11]}  Rc4 {[%clk 0:00:05]} 44. Kd3 {[%clk 0:00:11]}  Rc1 {[%clk 0:00:05]} 45. f5 {[%clk 0:00:12]}  exf5 {[%clk 0:00:05]} 46. Qxf5 {[%clk 0:00:11]}  Rxc6 {[%clk 0:00:05]} 47. e6+ {[%clk 0:00:10]}  f6 {[%clk 0:00:06]} 48. Qg5+ {[%clk 0:00:09]}  Kf8 {[%clk 0:00:06]} 49. Qh6+ {[%clk 0:00:09]}  Ke8 {[%clk 0:00:05]} 50. Qh5+ {[%clk 0:00:09]}  Kd8 {[%clk 0:00:04]} 51. Qf7 {[%clk 0:00:09]}  Rd6 {[%clk 0:00:05]} 52. Ke4 {[%clk 0:00:09]}  f5+ {[%clk 0:00:04]} 53. Ke3 {[%clk 0:00:06]}  Rd5 {[%clk 0:00:05]} 54. Qg8+ {[%clk 0:00:05]}  Kc7 {[%clk 0:00:05]} 55. Qf7 {[%clk 0:00:06]}  Kd6 {[%clk 0:00:05]} 56. Bf6 {[%clk 0:00:06]}  Bxf6 {[%clk 0:00:04]} 57. Qxf6 {[%clk 0:00:07]}  Re5+ {[%clk 0:00:05]} 58. Kf4 {[%clk 0:00:08]}  Rxe6 {[%clk 0:00:06]} 59. Qxf5 {[%clk 0:00:08]}  Rg6 {[%clk 0:00:06]} 60. Qd3+ {[%clk 0:00:08]}  Ke6 {[%clk 0:00:06]} 61. Qc4+ {[%clk 0:00:08]}  Ke7 {[%clk 0:00:07]} 62. Qc7+ {[%clk 0:00:09]}  Ke8 {[%clk 0:00:06]} 63. Qxh7 {[%clk 0:00:09]}  Rd6 {[%clk 0:00:05]} 64. Ke5 {[%clk 0:00:09]}  Rc6 {[%clk 0:00:03]} 65. Qb7 {[%clk 0:00:09]}  Rg6 {[%clk 0:00:02]} 66. Qb5+ {[%clk 0:00:08]}  Ke7 {[%clk 0:00:02]} 67. Kf5 {[%clk 0:00:09]}  Rf6+ {[%clk 0:00:02]} 68. Ke5 {[%clk 0:00:09]}  Re6+ {[%clk 0:00:02]} 69. Kd5 {[%clk 0:00:10]}  Rd6+ {[%clk 0:00:03]} 70. Kc5 {[%clk 0:00:11]}  Re6 {[%clk 0:00:03]} 71. Qb7+ {[%clk 0:00:10]}  Ke8 {[%clk 0:00:04]} 72. Kd5 {[%clk 0:00:10]}  Rf6 {[%clk 0:00:04]} 73. Ke5 {[%clk 0:00:10]}  Rg6 {[%clk 0:00:05]} 74. Qe4 {[%clk 0:00:10]}  Kf7 {[%clk 0:00:04]} 75. Qf5+ {[%clk 0:00:10]}  Kg7 {[%clk 0:00:05]} 76. Qf4 {[%clk 0:00:10]}  Rh6 {[%clk 0:00:05]} 77. Qg5+ {[%clk 0:00:09]}  Rg6 {[%clk 0:00:05]} 78. Qe7+ {[%clk 0:00:10]}  Kg8 {[%clk 0:00:04]} 79. Kf5 {[%clk 0:00:10]}  Rh6 {[%clk 0:00:05]} 80. Kg5 {[%clk 0:00:10]}  Rh7 {[%clk 0:00:05]} 81. Qe8+ {[%clk 0:00:10]}  Kg7 {[%clk 0:00:06]} 82. Qg6+ {[%clk 0:00:10]}  Kh8 {[%clk 0:00:06]} 83. Kf6 {[%clk 0:00:11]}  Rf7+ {[%clk 0:00:06]} 84. Kg5 {[%clk 0:00:10]}  Rg7 {[%clk 0:00:06]} 85. Kh6 {[%clk 0:00:10]}  Rxg6+ {[%clk 0:00:07]} 86. Kxg6 {[%clk 0:00:11]} 1/2-1/2


[Site "https://www.chess.com"]

[Event "Titled Tuesday Blitz February 14 Late 2023"]
[White "Lorenzo De La Riva, Lazaro"]
[Black "Maksimovic, Bojan"]
[WhiteFideId "2268809"]
[BlackFideId "14408120"]
[WhiteElo "2404"]
[BlackElo "2486"]
[Result "0-1"]
[Round "02"]
[TimeControl "180+2"]
[Date "2023.02.14"]
[WhiteClock "0:00:27"]
[BlackClock "0:00:06"]

1. d4 {[%clk 0:03:00]}  Nf6 {[%clk 0:02:50]} 2. c4 {[%clk 0:03:01]}  c5 {[%clk 0:02:51]} 3. d5 {[%clk 0:03:00]}  e5 {[%clk 0:02:51]} 4. Nc3 {[%clk 0:02:57]}  d6 {[%clk 0:02:52]} 5. h3 {[%clk 0:02:48]}  Be7 {[%clk 0:02:52]} 6. e4 {[%clk 0:02:41]}  O-O {[%clk 0:02:51]} 7. g4 {[%clk 0:02:40]}  Nbd7 {[%clk 0:02:52]} 8. Nf3 {[%clk 0:02:39]}  Ne8 {[%clk 0:02:52]} 9. Bd3 {[%clk 0:02:38]}  g6 {[%clk 0:02:52]} 10. h4 {[%clk 0:02:33]}  Ndf6 {[%clk 0:02:49]} 11. Nh2 {[%clk 0:02:28]}  Ng7 {[%clk 0:02:48]} 12. f3 {[%clk 0:02:24]}  h5 {[%clk 0:02:47]} 13. g5 {[%clk 0:02:24]}  Nh7 {[%clk 0:02:47]} 14. Be3 {[%clk 0:02:18]}  f6 {[%clk 0:02:47]} 15. gxf6 {[%clk 0:02:18]}  Bxf6 {[%clk 0:02:46]} 16. Bf2 {[%clk 0:02:16]}  Bxh4 {[%clk 0:02:45]} 17. Qd2 {[%clk 0:02:15]}  Qg5 {[%clk 0:02:39]} 18. Qe2 {[%clk 0:02:11]}  Bxf2+ {[%clk 0:02:36]} 19. Qxf2 {[%clk 0:02:12]}  Qf6 {[%clk 0:02:10]} 20. O-O-O {[%clk 0:01:47]}  Bd7 {[%clk 0:02:10]} 21. Kb1 {[%clk 0:01:44]}  Rf7 {[%clk 0:02:08]} 22. Rdg1 {[%clk 0:01:43]}  Raf8 {[%clk 0:02:08]} 23. Qg2 {[%clk 0:01:36]}  g5 {[%clk 0:02:07]} 24. Be2 {[%clk 0:01:34]}  a6 {[%clk 0:02:02]} 25. Nf1 {[%clk 0:01:34]}  Qf4 {[%clk 0:01:59]} 26. Ng3 {[%clk 0:01:27]}  h4 {[%clk 0:01:58]} 27. Nf1 {[%clk 0:01:27]}  Kh8 {[%clk 0:01:57]} 28. Bd1 {[%clk 0:01:25]}  Nh5 {[%clk 0:01:55]} 29. Qc2 {[%clk 0:01:21]}  Qf6 {[%clk 0:01:52]} 30. Ne3 {[%clk 0:01:19]}  Nf4 {[%clk 0:01:43]} 31. Rf1 {[%clk 0:01:15]}  b5 {[%clk 0:01:43]} 32. Be2 {[%clk 0:01:13]}  b4 {[%clk 0:01:35]} 33. Ncd1 {[%clk 0:01:13]}  a5 {[%clk 0:01:36]} 34. Nf2 {[%clk 0:01:12]}  Qe7 {[%clk 0:01:33]} 35. Nfg4 {[%clk 0:01:04]}  Bxg4 {[%clk 0:01:24]} 36. Nxg4 {[%clk 0:01:05]}  Nf6 {[%clk 0:01:24]} 37. Ne3 {[%clk 0:01:04]}  N6h5 {[%clk 0:01:23]} 38. Rfg1 {[%clk 0:00:59]}  Rh7 {[%clk 0:01:16]} 39. Nf5 {[%clk 0:00:58]}  Rxf5 {[%clk 0:01:14]} 40. exf5 {[%clk 0:00:59]}  Nxe2 {[%clk 0:01:10]} 41. Qxe2 {[%clk 0:00:57]}  Ng3 {[%clk 0:01:10]} 42. Qd3 {[%clk 0:00:54]}  Nxh1 {[%clk 0:01:10]} 43. Rxh1 {[%clk 0:00:55]}  Qf6 {[%clk 0:01:10]} 44. f4 {[%clk 0:00:48]}  gxf4 {[%clk 0:00:44]} 45. Ka1 {[%clk 0:00:46]}  Rh5 {[%clk 0:00:39]} 46. a3 {[%clk 0:00:42]}  Qxf5 {[%clk 0:00:36]} 47. Qb3 {[%clk 0:00:41]}  f3 {[%clk 0:00:15]} 48. Qa4 {[%clk 0:00:39]}  f2 {[%clk 0:00:15]} 49. Qe8+ {[%clk 0:00:38]}  Kg7 {[%clk 0:00:15]} 50. Rf1 {[%clk 0:00:38]}  Rg5 {[%clk 0:00:13]} 51. Qe7+ {[%clk 0:00:36]}  Kh6 {[%clk 0:00:12]} 52. Qxd6+ {[%clk 0:00:36]}  Kh5 {[%clk 0:00:13]} 53. Qxc5 {[%clk 0:00:32]}  Rg2 {[%clk 0:00:13]} 54. d6 {[%clk 0:00:29]}  Qd3 {[%clk 0:00:13]} 55. Qxe5+ {[%clk 0:00:27]}  Kg4 {[%clk 0:00:14]} 56. Qg7+ {[%clk 0:00:27]}  Kh3 {[%clk 0:00:13]} 57. Rh1+ {[%clk 0:00:27]}  Rh2 {[%clk 0:00:13]} 58. Qd7+ {[%clk 0:00:28]}  Kg2 {[%clk 0:00:13]} 59. Qc6+ {[%clk 0:00:27]}  Kg3 {[%clk 0:00:06]} 0-1


[Site "https://www.chess.com"]